bitfinex/quotes_SOLUSD_20250821
["timestamp","ask_amount","ask_price","bid_price","bid_amount"]
[1755793970137,0.90216157,182.33,182.28,79.8]
[1755793970316,7.43737333,182.3,182.28,79.8]
[1755793971341,7.43737333,182.32,182.28,79.8]
[1755793971536,7.49737333,182.33,182.29,0.69]
[1755793972198,7.49737333,182.33,182.3,0.69]
[1755793973540,7.43737333,182.32,182.28,79.8]
[1755793973736,7.43737333,182.3,182.25,0.03]
[1755793973940,7.43737333,182.29,182.26,43.58]
[1755793974237,7.43737333,182.28,182.26,43.6]
[1755793974725,0.06,182.33,182.25,0.03]
[1755793974726,8.13737333,182.27,182.25,0.03]
[1755793974933,7.43737333,182.26,182.25,0.03]
[1755793975309,8.42169647,182.26,182.25,0.03]
[1755793978849,22.01729048,182.26,182.25,0.03]
[1755793979027,25.66955011,182.26,182.25,0.03]
[1755793981222,48.01729048,182.26,182.25,0.03]
[1755793981417,33.43737333,182.26,182.25,0.03]
[1755793981613,33.72169647,182.26,182.25,0.03]
[1755793981828,33.5795349,182.26,182.25,0.03]
[1755793982045,34.42169647,182.26,182.25,0.03]
[1755793982234,48.01729048,182.26,182.25,0.03]
[1755793982737,26.28432314,182.26,182.25,0.03]
[1755793982938,33.72169647,182.26,182.25,0.03]
[1755793983142,34.42169647,182.26,182.25,0.03]
[1755793983350,33.72169647,182.26,182.25,0.03]
[1755793983537,34.42169647,182.26,182.25,0.03]
[1755793983736,48.01729048,182.26,182.25,0.03]
[1755793984544,22.01729048,182.26,182.25,0.03]
[1755793985945,26.28432314,182.25,182.24,0.03]
[1755793986140,34.42169647,182.25,182.24,0.03]
[1755793986735,13.87991715,182.24,182.23,0.03]
[1755793987060,22.01729048,182.24,182.23,0.03]
[1755793987251,0.28432314,182.19,182.17,0.03]
[1755793987458,7.72169647,182.18,182.17,0.03]
[1755793989376,7.72169647,182.18,182.17,0.72]
[1755793989545,7.43737333,182.18,182.17,0.72]
[1755793991361,7.72169647,182.18,182.17,0.03]
[1755793993745,22.01729048,182.18,182.17,0.03]
[1755793994544,7.72169647,182.18,182.17,0.03]
[1755793995267,7.72169647,182.18,182.17,0.72]
[1755793995652,7.72169647,182.18,182.17,0.03]
[1755793996679,7.72169647,182.18,182.17,0.71]
[1755793997373,7.72169647,182.18,182.17,0.03]
[1755793998353,33.72169647,182.18,182.17,0.03]
[1755793999350,2.86476668,182.23,182.17,87.94737333]
[1755793999573,2.86476668,182.23,182.18,8.11737333]
[1755793999574,7.43737333,182.23,182.18,8.11737333]
[1755793999763,7.43737333,182.22,182.19,0.68]
[1755794000075,7.43737333,182.21,182.19,0.68]
[1755794000577,7.43737333,182.2,182.19,0.68]
[1755794000945,7.43737333,182.22,182.19,0.68]
[1755794001164,0.06,182.23,182.2,7.43737333]
[1755794001575,0.06,182.23,182.21,8.11737333]
[1755794001952,0.06,182.23,182.22,0.68]
[1755794003277,0.06,182.23,182.22,8.11737333]
[1755794005659,0.06,182.23,182.22,21.71296734]
[1755794007362,0.06,182.23,182.22,70.18]
[1755794007572,0.06,182.23,182.22,77.61737333]
[1755794009977,0.06,182.23,182.22,65.21296734]
[1755794010379,0.06,182.25,182.24,79.74]
[1755794010577,0.06,182.25,182.24,87.17737333]
[1755794010966,0.06,182.25,182.24,113.85737333]
[1755794014285,0.06,182.25,182.24,84.980176]
[1755794014489,0.06,182.25,182.24,128.480176]
[1755794015676,0.06,182.25,182.24,123.22]
[1755794016174,0.06,182.25,182.24,127.780176]
[1755794016373,0.06,182.25,182.24,128.460176]
[1755794018582,0.06,182.25,182.24,146.61594601]
[1755794018779,0.06,182.25,182.24,142.05577001]
[1755794020301,0.06,182.29,182.27,79.62]
[1755794020507,0.06,182.29,182.28,48.040176]
[1755794020691,0.06,182.29,182.28,48.720176]
[1755794023308,0.06,182.29,182.27,84.180176]
[1755794023500,0.72,182.29,182.28,43.48]
[1755794023713,0.66,182.28,182.27,79.62]
[1755794023894,0.66,182.28,182.27,123.1]
[1755794024211,0.06,182.29,182.27,123.1]
[1755794024411,0.72,182.29,182.27,123.1]
[1755794024615,0.06,182.29,182.27,123.1]
[1755794025218,0.66,182.28,182.27,79.62]
[1755794025510,0.66,182.28,182.27,123.1]
[1755794025709,5.220176,182.28,182.22,4.560176]
[1755794025909,4.560176,182.27,182.23,43.48]
[1755794026146,5.220176,182.27,182.23,43.48]
[1755794026487,0.72,182.29,182.23,48.040176]
[1755794026815,5.280176,182.29,182.24,4.560176]
[1755794026990,5.280176,182.29,182.25,43.48]
[1755794027190,4.560176,182.27,182.26,43.48]
[1755794027398,5.220176,182.27,182.26,43.48]
[1755794027928,0.66,182.27,182.26,43.48]
[1755794028224,5.220176,182.27,182.26,43.48]
[1755794030019,0.66,182.27,182.26,43.48]
[1755794030214,5.220176,182.27,182.26,43.48]
[1755794030408,0.66,182.27,182.26,43.48]
[1755794031143,0.66,182.27,182.26,123.1]
[1755794031532,5.220176,182.27,182.23,79.62]
[1755794031842,5.220176,182.27,182.22,0.03]
[1755794031843,4.560176,182.24,182.22,0.03]
[1755794031998,0.28432314,182.27,182.23,43.48]
[1755794032634,0.66,182.26,182.23,43.48]
[1755794033205,4.560176,182.24,182.22,0.03]
[1755794033406,4.560176,182.23,182.22,0.03]
[1755794033646,5.220176,182.23,182.22,0.03]
[1755794035418,5.50449914,182.23,182.22,0.03]
[1755794035621,45.10009315,182.23,182.22,0.03]
[1755794036925,19.10009315,182.23,182.22,0.03]
[1755794037123,39.87991715,182.22,182.19,0.03]
[1755794037331,4.84449914,182.2,182.19,0.03]
[1755794037561,39.59559401,182.18,182.17,0.03]
[1755794037857,49.00026915,182.18,182.17,0.03]
[1755794038158,13.87991715,182.17,182.13,0.03]
[1755794038321,13.87991715,182.15,182.13,0.03]
[1755794038688,44.44009315,182.15,182.13,0.03]
[1755794039158,31.50449914,182.15,182.13,0.03]
[1755794040244,30.84449914,182.15,182.13,0.03]
[1755794040635,4.560176,182.16,182.13,0.68]
[1755794040870,5.220176,182.15,182.13,0.03]
[1755794041227,5.50449914,182.15,182.13,0.03]
[1755794043834,19.10009315,182.15,182.13,0.03]
[1755794045563,13.87991715,182.14,182.13,0.03]
[1755794045763,39.87991715,182.12,182.11,0.03]
[1755794045968,44.44009315,182.12,182.11,0.03]
[1755794046468,13.87991715,182.11,182.1,0.1]
[1755794046767,0.28432314,182.07,182.06,0.1]
[1755794047065,10.06467514,182.07,182.06,0.1]
[1755794047732,23.66026915,182.07,182.06,0.1]
[1755794049135,26.0,182.03,181.98,0.1]
[1755794049341,4.560176,181.99,181.98,0.1]
[1755794050162,4.560176,181.99,181.98,0.75]
[1755794050558,4.560176,181.99,181.98,0.1]
[1755794050740,4.560176,181.99,181.98,0.75]
[1755794051156,26.0,182.03,181.98,0.75]
[1755794051565,4.560176,182.01,181.98,0.75]
[1755794051770,4.560176,181.99,181.98,0.1]
[1755794051978,13.87991715,181.98,181.92,0.1]
[1755794052273,4.560176,181.93,181.92,0.1]
[1755794052441,26.0,181.95,181.92,0.75]
[1755794052646,4.560176,181.93,181.92,0.75]
[1755794052841,4.560176,181.93,181.92,0.1]
[1755794053262,4.84449914,181.98,181.92,0.1]
[1755794053263,0.66,181.97,181.92,0.1]
[1755794053462,4.560176,181.93,181.92,0.1]
[1755794054075,4.84449914,181.93,181.92,0.1]
[1755794054244,5.50449914,181.93,181.92,0.1]
[1755794054450,7.75042018,181.93,181.92,0.1]
[1755794054652,7.46609704,181.93,181.92,0.75]
[1755794054850,7.46609704,181.93,181.92,0.1]
[1755794056347,8.12609704,181.93,181.92,0.1]
[1755794056544,8.41042018,181.93,181.92,0.1]
[1755794056886,34.41042018,181.93,181.92,0.1]
[1755794057052,48.00601419,181.93,181.92,0.1]
[1755794057967,26.0,181.91,181.81,0.69]
[1755794058183,7.46609704,181.85,181.82,43.66]
[1755794058387,7.46609704,181.85,181.83,0.69]
[1755794059788,7.46609704,181.84,181.81,0.69]
[1755794059987,7.46609704,181.83,181.81,0.69]
[1755794060192,7.46609704,181.82,181.78,0.69]
[1755794060374,0.28432314,181.89,181.78,43.64]
[1755794060375,0.7,181.84,181.78,43.64]
[1755794060694,7.46609704,181.82,181.79,0.69]
[1755794061395,7.46609704,181.81,181.76,7.46609704]
[1755794061691,7.46609704,181.79,181.77,44.35]
[1755794061875,7.46609704,181.79,181.77,0.69]
[1755794062958,7.46609704,181.8,181.75,0.72]
[1755794063180,7.46609704,181.8,181.76,0.69]
[1755794063674,0.28432314,181.83,181.77,0.69]
[1755794063860,7.46609704,181.82,181.77,8.15609704]
[1755794064066,33.46609704,181.84,181.78,0.69]
[1755794064260,33.46609704,181.84,181.79,7.46609704]
[1755794064570,7.46609704,181.83,181.8,0.69]
[1755794064985,7.46609704,181.84,181.81,0.69]
[1755794065183,7.46609704,181.85,181.8,7.46609704]
[1755794065388,7.46609704,181.84,181.8,43.64]
[1755794065696,7.46609704,181.82,181.78,0.69]
[1755794065869,0.7,181.84,181.8,43.64]
[1755794066201,7.46609704,181.83,181.8,43.64]
[1755794066376,7.46609704,181.83,181.81,0.69]
[1755794066999,0.28432314,181.86,181.82,0.69]
[1755794067206,7.46609704,181.85,181.82,0.69]
[1755794067371,7.46609704,181.84,181.82,0.69]
[1755794067703,7.46609704,181.83,181.8,43.64]
[1755794067887,7.46609704,181.83,181.78,8.15609704]
[1755794068068,7.46609704,181.83,181.79,0.03]
[1755794068268,0.7,181.84,181.79,0.03]
[1755794068269,0.7,181.84,181.79,44.34]
[1755794068590,7.46609704,181.82,181.79,44.34]
[1755794068992,7.46609704,181.85,181.8,0.69]
[1755794069167,26.0,181.87,181.8,0.69]
[1755794069364,7.46609704,181.86,181.81,51.08609704]
[1755794069598,7.46609704,181.86,181.82,0.69]
[1755794069895,7.46609704,181.84,181.79,0.03]
[1755794070197,7.46609704,181.84,181.8,43.64]
[1755794070395,26.0,181.89,181.81,0.69]
[1755794070586,0.7,181.91,181.85,7.46609704]
[1755794070789,7.46609704,181.91,181.86,51.79609704]
[1755794070988,7.46609704,181.9,181.86,44.37]
[1755794071188,0.7,181.92,181.87,0.69]
[1755794071500,7.46609704,181.93,181.88,0.69]
[1755794071796,7.46609704,181.9,181.85,8.15609704]
[1755794071983,7.46609704,181.9,181.86,44.37]
[1755794072186,0.7,181.92,181.86,44.37]
[1755794072384,7.46609704,181.9,181.86,44.37]
[1755794072996,7.46609704,181.9,181.87,44.39]
[1755794074800,26.06,181.95,181.88,0.69]
[1755794074969,7.46609704,181.92,181.88,0.69]
[1755794075512,7.46609704,181.91,181.87,43.7]
[1755794075803,7.46609704,181.91,181.87,44.39]
[1755794076171,0.7,181.91,181.88,43.64]
[1755794076375,7.46609704,181.9,181.88,43.64]
[1755794077291,7.46609704,181.9,181.87,43.64]
[1755794077495,8.16609704,181.89,181.87,43.62]
[1755794077705,7.46609704,181.88,181.86,43.62]
[1755794077880,0.7,181.89,181.86,43.62]
[1755794078501,4.58206747,181.87,181.82,0.72]
[1755794078706,4.58206747,181.85,181.82,0.72]
[1755794078908,4.58206747,181.85,181.82,44.34]
[1755794079208,4.58206747,181.85,181.82,0.72]
[1755794079397,4.58206747,181.84,181.82,0.72]
[1755794079583,0.7,181.87,181.82,44.34]
[1755794079770,4.58206747,181.85,181.82,0.03]
[1755794079973,4.58206747,181.83,181.82,0.03]
[1755794080199,5.28206747,181.83,181.82,0.03]
[1755794080399,8.17292151,181.83,181.82,0.03]
[1755794082784,8.45724465,181.83,181.82,0.03]
[1755794082989,29.52576017,181.83,181.82,0.03]
[1755794085014,29.52576017,181.83,181.79,0.03]
[1755794085015,39.59559401,181.8,181.79,0.03]
[1755794085209,47.35283866,181.8,181.79,0.03]
[1755794085513,26.0,181.77,181.75,0.03]
[1755794085708,7.47292151,181.76,181.75,0.03]
[1755794086207,7.47292151,181.76,181.75,0.72]
[1755794086381,26.28432314,181.79,181.75,0.72]
[1755794086579,7.47292151,181.77,181.75,0.72]
[1755794086782,7.47292151,181.76,181.75,0.03]
[1755794086982,7.47292151,181.76,181.75,0.68]
[1755794087207,26.0,181.78,181.75,0.68]
[1755794087412,7.47292151,181.76,181.75,0.68]
[1755794088213,7.47292151,181.77,181.75,0.68]
[1755794088805,7.47292151,181.77,181.75,0.03]
[1755794089016,7.47292151,181.76,181.75,0.03]
[1755794089526,7.47292151,181.76,181.75,0.68]
[1755794089828,7.47292151,181.76,181.75,0.03]
[1755794090017,22.02283866,181.76,181.75,0.03]
[1755794090220,22.02283866,181.76,181.6,0.1]
[1755794090221,7.47292151,181.66,181.63,0.65]
[1755794090629,7.47292151,181.66,181.61,7.47292151]
[1755794090630,7.47292151,181.66,181.64,0.65]
[1755794090804,7.47292151,181.66,181.65,0.65]
[1755794091250,7.47292151,181.66,181.61,7.47292151]
[1755794091431,0.28432314,181.69,181.63,0.65]
[1755794091589,7.47292151,181.64,181.63,0.65]
[1755794091794,7.47292151,181.65,181.63,0.65]
[1755794092329,7.47292151,181.65,181.6,7.57292151]
[1755794092504,7.47292151,181.66,181.64,0.65]
[1755794092714,7.47292151,181.65,181.6,51.27292151]
[1755794092915,7.47292151,181.65,181.62,0.65]
[1755794093122,7.47292151,181.65,181.63,0.65]
[1755794093416,7.47292151,181.66,181.64,0.65]
[1755794093620,7.47292151,181.65,181.6,0.1]
[1755794093825,0.95432314,181.69,181.62,0.65]
[1755794094336,7.47292151,181.66,181.62,0.65]
[1755794094495,7.47292151,181.69,181.64,7.47292151]
[1755794094698,7.47292151,181.69,181.65,0.65]
[1755794094924,7.47292151,181.7,181.66,0.65]
[1755794095148,31.39000472,181.72,181.66,0.65]
[1755794095149,7.47292151,181.72,181.67,7.47292151]
[1755794095358,7.47292151,181.72,181.63,13.59559401]
[1755794095359,7.47292151,181.72,181.68,7.47292151]
[1755794095756,7.47292151,181.72,181.69,0.65]
[1755794095923,0.81216157,181.76,181.7,0.65]
[1755794096120,7.47292151,181.75,181.7,8.12292151]
[1755794096315,26.67,181.78,181.71,0.65]
[1755794096551,7.47292151,181.73,181.68,7.47292151]
[1755794096730,7.47292151,181.72,181.67,7.47292151]
[1755794096938,7.47292151,181.72,181.69,0.65]
[1755794097341,7.47292151,181.73,181.68,7.47292151]
[1755794097520,7.47292151,181.73,181.7,0.65]
[1755794097719,7.47292151,181.73,181.68,7.47292151]
[1755794097950,0.67,181.77,181.7,8.12292151]
[1755794098253,7.47292151,181.74,181.71,0.65]
[1755794098954,7.47292151,181.75,181.72,0.65]
[1755794099140,7.47292151,181.76,181.72,0.65]
[1755794099464,7.47292151,181.75,181.7,8.12292151]
[1755794099677,7.47292151,181.75,181.71,0.65]
[1755794100143,0.95432314,181.78,181.72,0.65]
[1755794100455,7.47292151,181.79,181.74,7.47292151]
[1755794100745,7.47292151,181.79,181.75,0.65]
[1755794100948,7.47292151,181.77,181.72,0.65]
[1755794101118,0.67,181.76,181.69,8.12292151]
[1755794101318,7.47292151,181.74,181.69,51.86292151]
[1755794101520,0.67,181.79,181.71,0.03]
[1755794101716,7.47292151,181.76,181.72,0.65]
[1755794101960,7.47292151,181.73,181.71,0.03]
[1755794102122,7.47292151,181.72,181.71,0.03]
[1755794102323,0.67,181.75,181.71,0.03]
[1755794102573,7.47292151,181.72,181.71,0.03]
[1755794102756,8.14292151,181.72,181.71,0.03]
[1755794103777,8.42724465,181.72,181.71,0.03]
[1755794107375,15.90016616,181.72,181.69,0.03]
[1755794107674,47.35283866,181.7,181.6,0.1]
[1755794107859,7.47292151,181.62,181.6,0.1]
[1755794108450,7.47292151,181.62,181.6,0.75]
[1755794108640,7.47292151,181.61,181.6,0.1]
[1755794108839,0.67,181.64,181.6,0.1]
[1755794109060,7.47292151,181.61,181.6,0.1]
[1755794111084,0.67,181.64,181.6,0.1]
[1755794111308,7.75724465,181.61,181.6,0.1]
[1755794111492,15.90016616,181.61,181.6,0.1]
[1755794111664,8.42724465,181.61,181.6,0.1]
[1755794113201,15.90016616,181.61,181.6,0.1]
[1755794113369,8.42724465,181.61,181.6,0.1]
[1755794113874,7.47292151,181.61,181.6,0.1]
[1755794114186,8.42724465,181.61,181.6,0.1]
[1755794114770,7.75724465,181.61,181.6,0.1]
[1755794115380,8.42724465,181.61,181.6,0.1]
[1755794115589,7.75724465,181.61,181.6,0.1]
[1755794116167,8.42724465,181.61,181.6,0.1]
[1755794116993,7.75724465,181.61,181.6,0.1]
[1755794117167,7.47292151,181.61,181.6,0.1]
[1755794117367,48.7120203,181.66,181.6,0.1]
[1755794117597,7.47292151,181.61,181.6,0.1]
[1755794118099,44.4,181.68,181.6,0.1]
[1755794118303,7.47292151,181.62,181.6,0.78]
[1755794118484,44.4,181.68,181.6,0.78]
[1755794118802,7.47292151,181.66,181.61,7.47292151]
[1755794118977,7.47292151,181.64,181.62,0.68]
[1755794119177,7.47292151,181.63,181.6,0.78]
[1755794119375,30.34569725,181.68,181.6,0.78]
[1755794119376,7.47292151,181.62,181.6,0.78]
[1755794119595,30.34569725,181.68,181.6,0.78]
[1755794119596,7.47292151,181.61,181.6,0.1]
[1755794119798,7.47292151,181.61,181.6,0.78]
[1755794120101,7.47292151,181.62,181.6,0.78]
[1755794120307,0.66,181.67,181.6,0.78]
[1755794120308,7.47292151,181.61,181.6,0.78]
[1755794120705,7.47292151,181.62,181.6,0.78]
[1755794120876,7.47292151,181.62,181.61,0.68]
[1755794121078,7.47292151,181.63,181.61,0.68]
[1755794121282,0.66,181.67,181.62,0.68]
[1755794121591,7.47292151,181.65,181.63,0.68]
[1755794121780,0.66,181.69,181.61,7.47292151]
[1755794122112,2.86825851,181.7,181.6,0.1]
[1755794122113,7.47292151,181.68,181.64,0.68]
[1755794122303,7.47292151,181.68,181.65,0.68]
[1755794122480,7.47292151,181.7,181.65,8.15292151]
[1755794122673,7.47292151,181.7,181.66,0.68]
[1755794122881,7.47292151,181.7,181.6,19.202196]
[1755794122882,7.47292151,181.67,181.6,0.1]
[1755794123103,7.47292151,181.66,181.63,0.68]
[1755794123279,7.47292151,181.65,181.61,0.68]
[1755794123482,7.47292151,181.65,181.62,0.68]
[1755794123709,7.47292151,181.68,181.63,7.47292151]
[1755794123907,7.47292151,181.7,181.65,7.47292151]
[1755794124115,0.66,181.73,181.66,0.68]
[1755794124408,7.47292151,181.67,181.63,124.28]
[1755794124719,0.66,181.7,181.64,0.68]
[1755794124880,7.47292151,181.68,181.64,0.68]
[1755794125086,7.47292151,181.65,181.61,43.8]
[1755794125285,7.47292151,181.64,181.62,0.68]
[1755794126102,7.47292151,181.64,181.6,0.1]
[1755794126317,7.47292151,181.64,181.61,0.68]
[1755794127012,7.47292151,181.63,181.6,0.1]
[1755794127226,0.66,181.66,181.6,0.1]
[1755794127386,7.47292151,181.63,181.6,0.1]
[1755794127587,7.47292151,181.64,181.61,0.68]
[1755794127986,7.47292151,181.64,181.6,0.1]
[1755794128415,7.47292151,181.64,181.6,0.78]
[1755794128832,7.47292151,181.62,181.6,0.1]
[1755794129011,7.47292151,181.61,181.6,0.1]
[1755794129323,7.47292151,181.61,181.59,0.03]
[1755794129324,15.89016616,181.61,181.59,0.03]
[1755794129503,8.41724465,181.6,181.59,0.03]
[1755794129904,7.47292151,181.6,181.59,0.03]
[1755794130591,8.13292151,181.6,181.59,0.03]
[1755794131019,0.28432314,181.63,181.59,0.03]
[1755794131230,7.47292151,181.6,181.59,0.03]
[1755794131814,7.75724465,181.6,181.59,0.03]
[1755794131987,8.41724465,181.6,181.59,0.03]
[1755794133727,0.28432314,181.6,181.59,0.03]
[1755794133930,7.47292151,181.6,181.59,0.03]
[1755794134841,8.41724465,181.6,181.59,0.03]
[1755794135638,26.28432314,181.59,181.57,0.03]
[1755794135828,26.28432314,181.59,181.46,7.47292151]
[1755794135829,26.0,181.55,181.46,0.68]
[1755794136029,7.47292151,181.49,181.46,0.68]
[1755794136245,0.94432314,181.54,181.46,26.68]
[1755794136545,7.47292151,181.48,181.46,26.68]
[1755794136735,0.66,181.53,181.46,26.68]
[1755794136901,7.47292151,181.48,181.46,0.68]
[1755794137103,7.47292151,181.47,181.41,13.59559401]
[1755794137330,7.47292151,181.47,181.42,0.68]
[1755794137537,7.47292151,181.47,181.45,26.0]
[1755794138033,7.47292151,181.47,181.45,26.68]
[1755794138239,0.66,181.52,181.46,0.68]
[1755794138535,7.47292151,181.49,181.46,0.68]
[1755794138703,7.47292151,181.5,181.46,0.68]
[1755794138899,7.47292151,181.5,181.47,0.68]
[1755794139128,7.47292151,181.5,181.48,0.68]
[1755794139439,43.84,181.58,181.49,0.68]
[1755794139604,7.47292151,181.54,181.49,8.15292151]
[1755794139804,0.66,181.59,181.5,0.68]
[1755794140027,7.47292151,181.57,181.52,7.47292151]
[1755794140259,7.47292151,181.58,181.53,0.68]
[1755794140477,7.47292151,181.58,181.53,8.15292151]
[1755794140758,7.47292151,181.59,181.54,8.15292151]
[1755794140957,0.06,181.6,181.55,8.15292151]
[1755794141166,0.06,181.6,181.57,7.47292151]
[1755794141663,0.06,181.6,181.58,0.68]
[1755794142268,0.06,181.6,181.59,0.68]
[1755794142763,0.06,181.6,181.57,0.68]
[1755794143271,0.06,181.6,181.58,0.68]
[1755794143476,0.06,181.6,181.58,8.15292151]
[1755794143631,0.06,181.6,181.59,51.35292151]
[1755794143829,0.06,181.6,181.59,0.68]
[1755794144135,0.06,181.6,181.59,44.54]
[1755794144333,0.06,181.6,181.59,52.01292151]
[1755794144540,0.06,181.6,181.59,44.54]
[1755794144943,0.06,181.6,181.59,65.60851552]
[1755794145455,0.06,181.6,181.59,58.13559401]
[1755794145661,0.06,181.6,181.59,14.27559401]
[1755794145961,0.06,181.6,181.59,21.74851552]
[1755794146135,0.06,181.6,181.59,65.60851552]
[1755794147529,13.59559401,181.59,181.42,15.54179667]
[1755794147732,13.59559401,181.59,181.52,7.47292151]
[1755794147733,7.47292151,181.59,181.52,7.47292151]
[1755794148032,7.47292151,181.57,181.53,0.67]
[1755794148227,0.06,181.6,181.53,0.67]
[1755794148433,0.06,181.6,181.55,7.47292151]
[1755794148660,7.53292151,181.6,181.56,0.67]
[1755794148837,7.53292151,181.6,181.57,0.67]
[1755794149039,0.06,181.6,181.57,0.67]
[1755794149248,0.06,181.6,181.58,0.67]
[1755794149652,0.06,181.6,181.58,45.02]
[1755794149961,0.06,181.6,181.54,13.59559401]
[1755794149962,8.04292151,181.59,181.54,45.02]
[1755794150129,7.47292151,181.55,181.54,45.02]
[1755794151145,7.47292151,181.55,181.49,14.26559401]
[1755794151335,7.47292151,181.54,181.5,45.0]
[1755794151536,7.47292151,181.54,181.51,0.67]
[1755794151740,0.57,181.59,181.52,0.67]
[1755794151947,7.47292151,181.57,181.52,0.67]
[1755794152141,7.47292151,181.57,181.53,0.67]
[1755794152365,7.47292151,181.56,181.51,0.67]
[1755794152656,26.0,181.58,181.51,0.67]
[1755794153542,0.06,181.6,181.52,7.47292151]
[1755794153736,7.47292151,181.56,181.53,44.98]
[1755794153942,7.47292151,181.56,181.53,45.65]
[1755794154138,7.47292151,181.54,181.53,44.98]
[1755794154846,26.57,181.58,181.53,44.98]
[1755794155034,7.47292151,181.54,181.53,44.98]
[1755794155341,0.06,181.6,181.53,45.65]
[1755794155540,7.47292151,181.57,181.53,45.65]
[1755794155751,0.06,181.6,181.54,8.14292151]
[1755794155938,7.47292151,181.58,181.54,0.67]
[1755794156143,7.47292151,181.57,181.54,0.67]
[1755794156338,7.47292151,181.57,181.54,44.96]
[1755794156533,7.47292151,181.57,181.55,0.67]
[1755794157833,7.47292151,181.57,181.54,44.96]
[1755794158066,7.47292151,181.55,181.52,0.67]
[1755794158276,7.47292151,181.55,181.54,44.96]
[1755794158436,7.47292151,181.56,181.54,44.96]
[1755794159364,0.06,181.6,181.54,44.96]
[1755794159735,7.47292151,181.56,181.54,44.96]
[1755794160038,7.47292151,181.56,181.54,45.63]
[1755794160283,0.06,181.6,181.55,0.67]
[1755794160445,0.06,181.6,181.59,7.47292151]
[1755794160651,0.06,181.6,181.59,53.02292151]
[1755794161240,0.06,181.6,181.59,146.41851552]
[1755794161462,0.06,181.62,181.59,66.90283866]
[1755794161767,0.06,181.75,181.63,39.59559401]
[1755794161768,7.47292151,181.71,181.63,39.59559401]
[1755794161948,7.47292151,181.7,181.63,91.94851552]
[1755794162148,7.47292151,181.7,181.63,92.61851552]
[1755794162640,0.06,181.73,181.63,92.61851552]
[1755794162850,7.47292151,181.72,181.63,92.61851552]
[1755794163059,7.47292151,181.72,181.63,98.40853705]
[1755794163243,0.06,181.73,181.63,98.40853705]
[1755794163244,7.53292151,181.73,181.63,98.40853705]
[1755794163569,0.06,181.73,181.63,172.70283866]
[1755794163765,0.06,181.73,181.63,194.71853705]
[1755794163944,0.06,181.73,181.63,204.71853705]
[1755794164338,0.06,181.73,181.68,13.59559401]
[1755794164546,0.06,181.73,181.71,7.47292151]
[1755794164869,0.06,181.73,181.72,44.9]
[1755794165160,0.06,181.73,181.72,45.57]
[1755794165943,0.06,181.73,181.72,53.04292151]
[1755794166266,0.06,181.73,181.72,66.63851552]
[1755794168156,0.06,181.73,181.72,58.41559401]
[1755794168474,0.06,181.73,181.72,44.82]
[1755794170561,0.06,181.73,181.72,44.76]
[1755794171576,7.53292151,181.73,181.72,44.76]
[1755794171783,8.19292151,181.73,181.67,14.26559401]
[1755794171945,7.47292151,181.69,181.68,44.76]
[1755794172141,7.47292151,181.69,181.65,13.59559401]
[1755794172343,7.47292151,181.67,181.66,44.78]
[1755794172540,8.13292151,181.67,181.66,44.78]
[1755794172786,26.0,181.64,181.62,0.03]
[1755794172942,14.94584302,181.63,181.58,0.03]
[1755794173141,7.47292151,181.59,181.58,0.03]
[1755794173571,0.28432314,181.63,181.58,0.03]